[Event "Lviv Tradition May 2018"]
[Site "Lviv"]
[Date "2018.05.17"]
[Round "3"]
[White "Fiedorek, Michal"]
[Black "Badelka, Olga"]
[Result "0-1"]
[ECO "B32"]
[WhiteElo "2081"]
[BlackElo "2397"]
[Annotator "NA"]
[PlyCount "98"]
[EventDate "2018.??.??"]
[EventType "tourn"]
[EventCountry "UKR"]
[SourceTitle "playchess.com"]
[Source "ChessBase"]
[SourceQuality "1"]
[TimeControl "5400+30"]

1. e4 {[%emt 0:00:00]} c5 {[%emt 0:00:03]} 2. Nf3 {[%emt 0:00:00]} Nc6 {[%emt 0:00:03]} 3. d4 {[%emt 0:00:00]} cxd4 {[%emt 0:00:05]} 4. Nxd4 {[%emt 0:00:00]} Qb6 {[%emt 0:00:02]} 5. Nb3 {[%emt 0:00:12]} Nf6 {[%emt 0:00:05]} 6. Nc3 {[%emt 0:00:44]} e6 {[%emt 0:00:04]} 7. Bd3 {[%emt 0:00:34]} a6 {[%emt 0:00:13]} 8. Be3 {[%emt 0:01:44]} Qc7 {[%emt 0:00:04]} 9. f4 {[%emt 0:02:34]} d6 {[%emt 0:00:10]} 10. Qf3 {[%emt 0:00:28]} b5 {[%emt 0:00:05] B33: Sicilian: Pelikan and Sveshnikov Variations} (10... Be7 11. g4 b6 12. O-O-O Nd7 13. Kb1 Nc5 14. g5 Bd7 15. Qf2 Nb4 16. Bd4 Rg8 17. Rhe1 Nbxd3 18. cxd3 O-O-O 19. Rc1 {½-½ (41) Ragger,M (2656)-Movsesian,S (2677) Linares 2017}) 11. g4 {[%emt 0:01:53]} Bb7 {[%emt 0:01:00]} 12. g5 {[%emt 0:03:53]} Nd7 {[%emt 0:00:04]} 13. O-O-O {[%emt 0:03:24]} g6 {[%emt 0:00:07]} 14. h4 {[%emt 0:03:21]} Bg7 {[%emt 0:00:51]} 15. Ne2 {[%emt 0:01:10]} Nb4 $146 {[%emt 0:05:28]} ({Predecessor:} 15... Nb6 16. Kb1 Nc4 17. Bc1 {½-½ (45) Revo,T (2044)-Badelka,O (2048) Minsk 2015}) 16. Kb1 {[%emt 0:01:14]} Nc5 {[%emt 0:00:18]} 17. Nxc5 {[%emt 0:05:13]} dxc5 {[%emt 0:00:06]} 18. a3 {[%emt 0:00:06]} Nxd3 {[%emt 0:00:41]} 19. cxd3 {[%emt 0:00:53]} c4 {[%emt 0:07:40]} 20. Rc1 {[%emt 0:11:42]} Qd7 {[%emt 0:04:58]} 21. d4 {[%emt 0:02:01]} a5 {[%emt 0:01:28]} 22. Ka2 {[%emt 0:07:50] [#]} Qc6 {[%emt 0:04:10]} ({Better is} 22... b4 $1 $19 23. Rxc4 Ba6) 23. Ng3 {[%emt 0:04:37]} b4 {[%emt 0:00:41]} 24. Rhe1 {[%emt 0:07:57]} bxa3 {[%emt 0:04:23]} 25. bxa3 {[%emt 0:00:39]} c3 {[%emt 0:00:15]} 26. Bf2 {[%emt 0:00:46]} Qc4+ {[%emt 0:02:26]} 27. Ka1 {[%emt 0:00:08]} Rc8 {[%emt 0:02:07]} 28. Qe2 {[%emt 0:02:03]} Qa4 {[%emt 0:01:15]} 29. Qc2 $19 {[%emt 0:02:05]} Qxa3+ {[%emt 0:01:43]} 30. Qa2 {[%emt 0:00:08]} Qxa2+ {[%emt 0:20:22]} 31. Kxa2 {[%emt 0:00:17]} Rc4 {[%emt 0:02:06]} 32. Kb3 {[%emt 0:01:54]} Rb4+ {[%emt 0:00:12]} 33. Kxc3 {[%emt 0:00:28]} Kd7 {[%emt 0:00:03]} 34. Rb1 {[%emt 0:02:06]} Rc8+ {[%emt 0:00:14]} 35. Kd2 {[%emt 0:00:34]} Bf8 {[%emt 0:00:42]} 36. Rec1 {[%emt 0:01:42]} Rxb1 {[%emt 0:00:09]} 37. Rxb1 {[%emt 0:00:06]} Bb4+ {[%emt 0:00:02]} 38. Ke2 {[%emt 0:00:32]} Ba6+ {[%emt 0:00:26]} 39. Kf3 {[%emt 0:00:28]} Rc3+ {[%emt 0:06:51]} 40. Kg2 {[%emt 0:00:24]} Bd3 {[%emt 0:03:13]} 41. Rd1 {[%emt 0:02:24]} Bc2 {[%emt 0:02:03]} 42. Ra1 {[%emt 0:00:30]} Rc4 {[%emt 0:01:14]} 43. Kf3 {[%emt 0:00:38]} a4 {[%emt 0:01:20]} 44. Ne2 {[%emt 0:00:32]} a3 {[%emt 0:00:27]} 45. Be3 {[%emt 0:00:22]} Bb3 {[%emt 0:02:47]} 46. Nc1 {[%emt 0:01:45]} Bd1+ {[%emt 0:00:15]} 47. Kf2 {[%emt 0:00:32]} Rc2+ {[%emt 0:00:38]} 48. Kf1 {[%emt 0:00:21]} Bf3 {[%emt 0:01:20]} 49. Ra2 {[%emt 0:01:23]} Rb2 {[%emt 0:01:24]} 0-1

[Event "Lviv Tradition May 2018"]
[Site "Lviv"]
[Date "2018.05.18"]
[Round "4"]
[White "Badelka, Olga"]
[Black "Peng, Li Min"]
[Result "1-0"]
[ECO "D80"]
[WhiteElo "2397"]
[BlackElo "2320"]
[Annotator "ChessBase"]
[PlyCount "135"]
[EventDate "2018.??.??"]
[EventType "tourn"]
[EventCountry "UKR"]
[SourceTitle "playchess.com"]
[Source "ChessBase"]
[SourceQuality "1"]
[TimeControl "5400+30"]

1. d4 Nf6 2. c4 g6 3. Nc3 d5 4. Bg5 Ne4 5. Bf4 Nxc3 6. bxc3 dxc4 7. e4 Bg7 8. Bxc4 O-O 9. Nf3 c5 10. O-O Nc6 11. d5 Na5 12. Be2 Bg4 13. Qd3 e5 14. Nxe5 Bxe2 15. Qxe2 Re8 16. Nc4 Nxc4 17. Qxc4 b5 18. Qxc5 Rxe4 19. Bg3 Qd7 20. Rab1 a6 21. d6 Rc4 22. Qd5 Rac8 23. Rbe1 Bf6 24. Be5 R4c5 25. Qd4 Bxe5 26. Rxe5 R5c6 27. Rd1 Rd8 28. Rd5 Rdc8 29. h3 Re8 30. f4 Rc4 31. Qd2 f6 32. Kh2 Kf7 33. f5 Kg7 34. Rf1 Ree4 35. Qf2 Rc6 36. fxg6 Rxd6 37. Qxf6+ Rxf6 38. Rxd7+ Kxg6 39. Rxf6+ Kxf6 40. Rd6+ Ke5 41. Rxa6 Kd5 42. Rh6 Re7 43. Rh5+ Kc4 44. g4 Rb7 45. Rh6 Ra7 46. Rc6+ Kd5 47. Rc8 Rxa2+ 48. Kg3 Rc2 49. h4 Ke6 50. Rc5 Kd6 51. Rxb5 Rxc3+ 52. Kf4 Ke6 53. Kg5 Rc4 54. Rb7 h6+ 55. Kh5 Kf6 56. Rb6+ Kg7 57. Rg6+ Kh7 58. Rxh6+ Kg7 59. Ra6 Rc5+ 60. g5 Rb5 61. Ra7+ Kg8 62. Kh6 Rb6+ 63. g6 Rb8 64. h5 Rc8 65. Ra5 Rb8 66. Kg5 Rc8 67. h6 Kh8 68. h7 1-0

[Event "Lviv Tradition May 2018"]
[Site "Lviv"]
[Date "2018.05.18"]
[Round "4"]
[White "Oglaza, Oskar"]
[Black "Galperin, Platon"]
[Result "1-0"]
[ECO "A21"]
[WhiteElo "2279"]
[BlackElo "2332"]
[Annotator "ChessBase"]
[PlyCount "106"]
[EventDate "2018.??.??"]
[EventType "tourn"]
[EventCountry "UKR"]
[SourceTitle "playchess.com"]
[Source "ChessBase"]
[SourceQuality "1"]
[TimeControl "5400+30"]

1. c4 e5 2. Nc3 Bb4 3. Nd5 Bc5 4. e3 Nc6 5. Ne2 a6 6. d4 Ba7 7. b3 Nf6 8. Bb2 d6 9. dxe5 Nxe5 10. Nec3 O-O 11. Be2 Nxd5 12. Nxd5 c6 13. Nf4 b5 14. Nd3 Qg5 15. Nxe5 dxe5 16. Bf3 Rd8 17. Qc1 Bf5 18. Bxe5 Bd3 19. Bf4 Qf6 20. Be2 Qg6 21. Bxd3 Qxd3 22. f3 Re8 23. Kf2 Qf5 24. c5 Rad8 25. b4 g5 26. Bg3 Rd3 27. Re1 Qd5 28. Rd1 f5 29. Rxd3 Qxd3 30. Qd1 Qxe3+ 31. Kf1 a5 32. Bf2 Qe6 33. Qd4 Bb8 34. Re1 Be5 35. Qd2 h6 36. bxa5 Re7 37. a6 Kf7 38. Qa5 Qc4+ 39. Kg1 Bb8 40. Rxe7+ Kxe7 41. g3 g4 42. fxg4 Qc1+ 43. Kg2 Qc4 44. gxf5 Qe4+ 45. Kg1 Qxf5 46. a7 Qb1+ 47. Be1 Be5 48. Qd2 Bd4+ 49. Qxd4 Qxe1+ 50. Kg2 Qe2+ 51. Kh3 Qe6+ 52. Qg4 Qxa2 53. Qg7+ Ke8 1-0

[Event "Lviv Tradition May 2018"]
[Site "Lviv"]
[Date "2018.05.18"]
[Round "5"]
[White "Galperin, Platon"]
[Black "Badelka, Olga"]
[Result "1-0"]
[ECO "A04"]
[WhiteElo "2332"]
[BlackElo "2397"]
[Annotator "NA"]
[PlyCount "131"]
[EventDate "2018.??.??"]
[EventType "tourn"]
[EventCountry "UKR"]
[SourceTitle "playchess.com"]
[Source "ChessBase"]
[SourceQuality "1"]
[TimeControl "5400+30"]

1. Nf3 {[%emt 0:00:00]} c5 {[%emt 0:00:05]} 2. c4 {[%emt 0:00:03]} Nc6 {[%emt 0:00:05]} 3. Nc3 {[%emt 0:00:05]} g6 {[%emt 0:00:07]} 4. e3 {[%emt 0:00:03]} Nf6 {[%emt 0:00:24]} 5. d4 {[%emt 0:00:03]} cxd4 {[%emt 0:00:08]} 6. exd4 {[%emt 0:00:03]} d5 {[%emt 0:00:03]} 7. cxd5 {[%emt 0:00:07]} Nxd5 {[%emt 0:00:03]} 8. Qb3 {[%emt 0:00:08]} Nxc3 {[%emt 0:01:42]} 9. Bc4 {[%emt 0:00:10]} e6 {[%emt 0:02:02]} 10. bxc3 {[%emt 0:00:09]} Bg7 {[%emt 0:00:18]} 11. Ba3 {[%emt 0:00:08]} Bd7 {[%emt 0:11:52]} 12. Be2 {[%emt 0:08:31]} Na5 {[%emt 0:03:10]} 13. Qb2 {[%emt 0:02:30]} Bf8 {[%emt 0:02:44]} 14. O-O {[%emt 0:01:20]} Bxa3 {[%emt 0:00:38]} 15. Qxa3 {[%emt 0:00:09]} b6 {[%emt 0:00:08]} 16. d5 {[%emt 0:06:23]} Qe7 {[%emt 0:00:44]} 17. d6 {[%emt 0:00:48]} Qf6 {[%emt 0:00:30]} 18. c4 {[%emt 0:00:56]} Nb7 {[%emt 0:11:26]} 19. Nd2 {[%emt 0:00:48]} Bc6 {[%emt 0:03:03]} 20. d7+ {[%emt 0:03:09]} Kxd7 {[%emt 0:00:28]} 21. Rad1 {[%emt 0:00:54]} Kc7 {[%emt 0:04:27]} 22. Qg3+ {[%emt 0:00:36]} e5 {[%emt 0:06:08]} 23. f4 {[%emt 0:00:39]} Rae8 {[%emt 0:05:29]} 24. fxe5 {[%emt 0:00:44]} Qxe5 25. Qxe5+ {[%emt 0:00:10]} Rxe5 {[%emt 0:00:06]} 26. Rxf7+ {[%emt 0:00:06]} Kb8 {[%emt 0:00:05]} 27. Bf3 {[%emt 0:00:24]} Bxf3 {[%emt 0:00:21]} 28. Nxf3 {[%emt 0:00:10]} Rf5 {[%emt 0:02:05]} 29. Re7 {[%emt 0:01:05]} Nc5 {[%emt 0:05:10]} 30. Ne5 {[%emt 0:04:09]} Rc8 {[%emt 0:01:19]} 31. Rd6 {[%emt 0:12:42]} Rc7 {[%emt 0:12:03]} 32. Nc6+ {[%emt 0:00:14]} Kc8 {[%emt 0:00:07]} 33. Nxa7+ {[%emt 0:14:48]} Kb7 {[%emt 0:00:01]} 34. Rxc7+ {[%emt 0:00:13]} Kxc7 {[%emt 0:00:03]} 35. Nb5+ {[%emt 0:00:07]} Kb7 {[%emt 0:00:03]} 36. Nc3 {[%emt 0:02:31]} Kc7 {[%emt 0:01:49]} 37. Rd5 {[%emt 0:08:32]} Rf8 {[%emt 0:00:22]} 38. Nb5+ {[%emt 0:00:44]} Kb7 {[%emt 0:00:53]} 39. Re5 {[%emt 0:02:34]} Kb8 {[%emt 0:03:56]} 40. Re7 {[%emt 0:01:21]} h5 {[%emt 0:00:20]} 41. Rg7 {[%emt 0:05:59]} Rf6 {[%emt 0:00:15]} 42. Nc3 {[%emt 0:01:05]} Nd3 {[%emt 0:02:34]} 43. Nd5 {[%emt 0:07:26]} Rc6 {[%emt 0:00:57]} 44. h3 {[%emt 0:01:02]} h4 {[%emt 0:05:41]} 45. Ne7 {[%emt 0:02:45]} Rxc4 {[%emt 0:01:12]} 46. Rxg6 {[%emt 0:00:17]} Ka7 {[%emt 0:14:28]} 47. Rg4 {[%emt 0:01:02]} Rc2 {[%emt 0:00:24]} 48. a4 {[%emt 0:00:32]} Ne1 {[%emt 0:01:15]} 49. Nf5 {[%emt 0:02:04]} Rc1 {[%emt 0:00:24]} 50. Kh2 {[%emt 0:00:48]} Ka6 {[%emt 0:00:23]} 51. Rxh4 {[%emt 0:01:07]} Rc2 {[%emt 0:00:16]} 52. Rg4 {[%emt 0:00:08]} Nf3+ {[%emt 0:00:43]} 53. Kg3 {[%emt 0:00:16]} Ne1 {[%emt 0:00:05]} 54. Ne3 {[%emt 0:01:28]} Re2 {[%emt 0:02:11]} 55. Re4 {[%emt 0:01:00]} Nd3 {[%emt 0:00:50]} 56. h4 {[%emt 0:01:18]} Nf2 {[%emt 0:00:11]} 57. Kf3 {[%emt 0:01:59]} Ra2 {[%emt 0:00:34]} 58. Rd4 {[%emt 0:01:09]} Nh1 {[%emt 0:00:32]} 59. Rd1 {[%emt 0:03:07]} Nf2 {[%emt 0:00:18]} 60. Rd6 {[%emt 0:00:08]} Nh1 {[%emt 0:00:16]} 61. g4 {[%emt 0:00:57]} Rf2+ {[%emt 0:00:06]} 62. Ke4 {[%emt 0:00:03]} Ng3+ {[%emt 0:00:09]} 63. Kd3 {[%emt 0:00:16]} Ra2 {[%emt 0:00:40]} 64. Nc4 {[%emt 0:00:42]} Rxa4 {[%emt 0:00:33]} 65. Rxb6+ {[%emt 0:00:06]} Ka7 {[%emt 0:00:01]} 66. Rb3 {[%emt 0:00:35]} 1-0

[Event "Lviv Tradition May 2018"]
[Site "Lviv"]
[Date "2018.05.18"]
[Round "5"]
[White "Peng, Li Min"]
[Black "Bogdanov, Egor"]
[Result "1-0"]
[ECO "D70"]
[WhiteElo "2320"]
[BlackElo "2335"]
[Annotator "NA"]
[PlyCount "49"]
[EventDate "2018.??.??"]
[EventType "tourn"]
[EventCountry "UKR"]
[SourceTitle "playchess.com"]
[Source "ChessBase"]
[SourceQuality "1"]
[TimeControl "5400+30"]

1. d4 {[%emt 0:00:00]} Nf6 {[%emt 0:00:16]} 2. c4 {[%emt 0:00:00]} g6 {[%emt 0:00:11]} 3. f3 {[%emt 0:00:00]} d5 {[%emt 0:00:05]} 4. cxd5 {[%emt 0:00:00]} Nxd5 {[%emt 0:00:05]} 5. e4 {[%emt 0:00:02]} Nb6 {[%emt 0:00:04]} 6. Nc3 {[%emt 0:00:04]} Bg7 {[%emt 0:00:12]} 7. Be3 {[%emt 0:00:05]} O-O {[%emt 0:00:20]} 8. Qd2 {[%emt 0:00:03]} Nc6 {[%emt 0:01:06]} 9. O-O-O {[%emt 0:00:41]} f5 {[%emt 0:02:08]} 10. e5 {[%emt 0:00:10]} Nb4 {[%emt 0:00:13]} 11. h4 {[%emt 0:00:48]} Be6 {[%emt 0:00:36]} 12. h5 {[%emt 0:00:23]} Nxa2+ {[%emt 0:02:06]} 13. Nxa2 {[%emt 0:00:30]} Bxa2 {[%emt 0:00:03]} 14. hxg6 {[%emt 0:00:10]} hxg6 {[%emt 0:00:06]} 15. Bh6 {[%emt 0:00:03]} Qd5 {[%emt 0:02:37]} 16. Ne2 {[%emt 0:02:11]} Qf7 {[%emt 0:03:30]} 17. Qg5 {[%emt 0:21:47]} f4 18. Bxg7 {[%emt 0:10:47]} Qxg7 {[%emt 0:06:39]} 19. Nxf4 {[%emt 0:00:12]} Rf5 {[%emt 0:00:02]} 20. Qg4 {[%emt 0:00:03]} Bf7 21. Bd3 {[%emt 0:00:49]} e6 {[%emt 0:02:05]} 22. Bxf5 {[%emt 0:00:15]} exf5 {[%emt 0:00:00]} 23. Qg5 {[%emt 0:00:37]} Re8 {[%emt 0:00:14]} 24. Rh6 {[%emt 0:00:10]} Nd7 {[%emt 0:04:57]} 25. e6 {[%emt 0:00:22]} 1-0

[Event "Lviv Tradition May 2018"]
[Site "Lviv"]
[Date "2018.05.18"]
[Round "5"]
[White "Terletsky, Oleg"]
[Black "Goluch, Piotr"]
[Result "0-1"]
[ECO "B18"]
[WhiteElo "2288"]
[BlackElo "2351"]
[Annotator "NA"]
[PlyCount "100"]
[EventDate "2018.??.??"]
[EventType "tourn"]
[EventCountry "UKR"]
[SourceTitle "playchess.com"]
[Source "ChessBase"]
[SourceQuality "1"]
[TimeControl "5400+30"]

1. e4 {[%emt 0:00:00]} c6 {[%emt 0:00:07]} 2. d4 {[%emt 0:00:00]} d5 {[%emt 0:00:05]} 3. Nc3 {[%emt 0:00:00]} dxe4 {[%emt 0:00:03]} 4. Nxe4 {[%emt 0:00:03]} Bf5 {[%emt 0:00:11]} 5. Ng3 {[%emt 0:00:05]} Bg6 {[%emt 0:00:04]} 6. h4 {[%emt 0:00:43]} h6 {[%emt 0:00:05]} 7. Nf3 {[%emt 0:00:05]} e6 {[%emt 0:00:03]} 8. h5 {[%emt 0:01:45]} Bh7 {[%emt 0:00:05]} 9. Bd3 {[%emt 0:00:04]} Bxd3 {[%emt 0:00:04]} 10. Qxd3 {[%emt 0:00:03]} Nf6 {[%emt 0:00:04]} 11. Bd2 {[%emt 0:00:53]} Be7 {[%emt 0:00:06]} 12. O-O-O {[%emt 0:00:20]} O-O {[%emt 0:00:04]} 13. Qe2 {[%emt 0:03:42] B19: Caro-Kann (Hauptvariante)} (13. Kb1 c5 14. Be3 Nbd7 15. dxc5 Nxc5 16. Qxd8 Rfxd8 17. Ne5 Nd5 18. Bxc5 Bxc5 19. Ne4 Be7 20. c4 Nf6 21. Nxf6+ gxf6 {0-1 (47) Khachiyan,M (2522)-Nakamura,H (2781) chess.com INT 2018}) 13... b5 {[%emt 0:02:25]} 14. Ne5 $146 {[%emt 0:09:15]} ({Vorgänger:} 14. Ne4 Nxe4 15. Qxe4 Qd5 16. Qxd5 cxd5 17. Ne5 Rc8 18. f4 f6 19. Ng6 Bd6 20. g4 Nc6 {0-1 (86) Babaniya,B (2056)-Asatryan,S (1953) Yerevan 2016}) 14... Qd5 {[%emt 0:03:33]} 15. Kb1 {[%emt 0:00:07]} a5 {[%emt 0:02:54]} 16. f4 {[%emt 0:02:17]} Na6 {[%emt 0:02:41]} 17. Qf3 {[%emt 0:09:18]} Qxf3 {[%emt 0:04:32]} 18. gxf3 {[%emt 0:03:59]} c5 {[%emt 0:04:43]} 19. Nc6 {[%emt 0:03:50]} Bd6 {[%emt 0:01:04]} 20. dxc5 {[%emt 0:00:13]} Bxc5 {[%emt 0:08:35]} 21. Nxa5 {[%emt 0:00:52]} Nd5 {[%emt 0:02:02]} 22. c3 {[%emt 0:17:05]} Bd6 {[%emt 0:08:13]} 23. Ne2 {[%emt 0:05:51]} Nc5 {[%emt 0:04:52]} 24. Nb3 {[%emt 0:00:09]} Nd3 {[%emt 0:00:34]} 25. Rh4 {[%emt 0:01:07]} Be7 {[%emt 0:06:12]} 26. Rh2 {[%emt 0:03:11]} Bd6 {[%emt 0:00:22]} 27. a3 {[%emt 0:10:32]} N3xf4 {[%emt 0:02:03]} 28. Bxf4 {[%emt 0:00:13]} Bxf4 $11 {[%emt 0:00:03]} 29. Nxf4 {[%emt 0:00:09]} Nxf4 {[%emt 0:00:04]} 30. Nd4 {[%emt 0:00:13]} Rab8 {[%emt 0:00:52]} 31. Rh4 {[%emt 0:02:47]} Nd5 {[%emt 0:03:20]} 32. Nc6 {[%emt 0:00:06]} Rb6 {[%emt 0:07:36]} 33. Nb4 {[%emt 0:07:22]} Nf6 {[%emt 0:00:43]} 34. Ka2 {[%emt 0:01:30]} Rc8 {[%emt 0:00:06]} 35. Kb3 {[%emt 0:01:26]} Rc5 {[%emt 0:00:06]} 36. Rdh1 {[%emt 0:05:07]} Rf5 {[%emt 0:00:08]} 37. R1h3 {[%emt 0:00:51]} Nd7 {[%emt 0:04:54]} 38. Rd4 {[%emt 0:00:57]} Nc5+ {[%emt 0:00:49]} 39. Kc2 {[%emt 0:00:30]} e5 {[%emt 0:00:08]} 40. Rd8+ {[%emt 0:06:07]} Kh7 {[%emt 0:00:04]} 41. Nd5 {[%emt 0:00:58]} Rb7 {[%emt 0:01:24]} 42. Rc8 {[%emt 0:04:10]} Ne6 {[%emt 0:00:17]} 43. b4 {[%emt 0:00:54]} Ng5 {[%emt 0:02:35]} 44. Rg3 {[%emt 0:00:38]} e4 {[%emt 0:03:03]} 45. fxe4 {[%emt 0:01:21]} Nxe4 {[%emt 0:00:04]} 46. Rd3 {[%emt 0:00:14]} Rf2+ {[%emt 0:00:04]} 47. Kc1 {[%emt 0:00:56]} Ra7 {[%emt 0:02:29]} 48. Ne3 {[%emt 0:00:57]} Rxa3 {[%emt 0:00:35]} 49. Nc2 {[%emt 0:01:01]} Ra2 {[%emt 0:00:07]} 50. Rdd8 {[%emt 0:00:30]} Rfxc2+ {[%emt 0:00:25]} 0-1

[Event "Lviv Tradition May 2018"]
[Site "Lviv"]
[Date "2018.05.18"]
[Round "5"]
[White "Fiedorek, Michal"]
[Black "Shkuran, Danylo"]
[Result "0-1"]
[ECO "B83"]
[WhiteElo "2081"]
[BlackElo "2395"]
[Annotator "NA"]
[PlyCount "68"]
[EventDate "2018.??.??"]
[EventType "tourn"]
[EventCountry "UKR"]
[SourceTitle "playchess.com"]
[Source "ChessBase"]
[SourceQuality "1"]
[TimeControl "5400+30"]

1. e4 {[%emt 0:00:00]} c5 {[%emt 0:00:05]} 2. Nf3 {[%emt 0:00:00]} e6 {[%emt 0:00:06]} 3. d4 {[%emt 0:00:00]} cxd4 {[%emt 0:00:07]} 4. Nxd4 {[%emt 0:00:00]} Nf6 {[%emt 0:00:23]} 5. Nc3 {[%emt 0:00:00]} d6 {[%emt 0:00:05]} 6. Be2 {[%emt 0:00:21]} Be7 {[%emt 0:00:24]} 7. O-O {[%emt 0:00:37]} O-O {[%emt 0:00:29]} 8. Be3 {[%emt 0:02:07]} a6 {[%emt 0:01:15]} 9. a4 {[%emt 0:00:16]} Nc6 {[%emt 0:01:07]} 10. f4 {[%emt 0:00:46]} Nxd4 {[%emt 0:07:25] B85: Sizilianisch (Scheveninger System)} (10... Qc7 11. Kh1 Nxd4 12. Bxd4 e5 13. Be3 exf4 14. Bxf4 Be6 15. Qd3 Nd7 16. Qg3 Ne5 17. Be3 Rfe8 18. Bd4 Bf8 19. Qf2 Rac8 20. Rfd1 g6 21. h3 Bg7 22. Bb6 Qe7 23. Bd4 Rc6 24. a5 {0-1 (49) Movsesian,S (2667)-Navara,D (2732) Czech Republic 2018}) 11. Bxd4 {[%emt 0:00:34]} b6 {[%emt 0:00:50]} 12. Kh1 {[%emt 0:04:27]} Bb7 {[%emt 0:00:50]} 13. Bd3 {[%emt 0:00:43]} Nd7 $146 {[%emt 0:04:48]} ({Vorgänger:} 13... d5 14. e5 Ne4 15. Qe2 Bc5 16. Bxe4 Bxd4 17. Bxh7+ Kxh7 {1-0 (38) Oshiro Shinsato,R (2154)-Reategui,M Lima 2002}) 14. Qf3 {[%emt 0:12:52]} Bf6 {[%emt 0:08:51]} 15. Bxf6 {[%emt 0:01:33]} Nxf6 {[%emt 0:02:15]} 16. g4 {[%emt 0:01:04]} g6 {[%emt 0:03:26]} 17. Ne2 {[%emt 0:10:04]} d5 {[%emt 0:05:19]} 18. e5 {[%emt 0:04:34]} Ne4 {[%emt 0:00:12]} 19. Bxe4 {[%emt 0:01:18]} dxe4 {[%emt 0:00:06]} 20. Qe3 {[%emt 0:00:12]} Rc8 {[%emt 0:00:54]} 21. Nc3 {[%emt 0:01:48]} Qh4 {[%emt 0:03:33]} 22. Rg1 {[%emt 0:07:30]} Rfd8 {[%emt 0:01:22]} 23. Rg2 {[%emt 0:00:34]} Qe7 {[%emt 0:09:13]} 24. Kg1 {[%emt 0:04:24]} Qb4 {[%emt 0:03:56]} 25. Rb1 {[%emt 0:04:22]} Rc4 {[%emt 0:09:16]} 26. Rf2 {[%emt 0:02:00]} Bc6 {[%emt 0:06:21]} 27. f5 {[%emt 0:04:27]} exf5 {[%emt 0:05:29]} 28. gxf5 {[%emt 0:00:16]} Qc5 {[%emt 0:02:20]} 29. Qg5 {[%emt 0:02:17]} Re8 {[%emt 0:00:35]} 30. fxg6 {[%emt 0:01:55]} hxg6 {[%emt 0:05:54]} 31. Qf6 {[%emt 0:04:35]} e3 {[%emt 0:04:01]} 32. Qxf7+ {[%emt 0:03:25]} Kh8 {[%emt 0:00:06]} 33. Qf6+ $19 {[%emt 0:04:01]} Kh7 {[%emt 0:00:09]} 34. Qf7+ {[%emt 0:00:17]} Kh6 {[%emt 0:00:10]} 0-1

[Event "Lviv Tradition May 2018"]
[Site "Lviv"]
[Date "2018.05.19"]
[Round "6"]
[White "Shkuran, Danylo"]
[Black "Goluch, Piotr"]
[Result "1-0"]
[ECO "B22"]
[WhiteElo "2395"]
[BlackElo "2351"]
[Annotator "NA"]
[PlyCount "93"]
[EventDate "2018.??.??"]
[EventType "tourn"]
[EventCountry "UKR"]
[SourceTitle "playchess.com"]
[Source "ChessBase"]
[SourceQuality "1"]
[TimeControl "5400+30"]

1. e4 {[%emt 0:00:00]} c5 {[%emt 0:00:07]} 2. c3 {[%emt 0:00:10]} d5 {[%emt 0:00:05]} 3. exd5 {[%emt 0:00:05]} Qxd5 {[%emt 0:00:04]} 4. d4 {[%emt 0:00:06]} Nc6 {[%emt 0:00:03]} 5. Nf3 {[%emt 0:00:42]} Bf5 {[%emt 0:01:10]} 6. Be3 {[%emt 0:02:50]} e6 {[%emt 0:00:14]} 7. Be2 {[%emt 0:07:00]} Nf6 {[%emt 0:03:11]} 8. O-O {[%emt 0:00:33]} Ng4 {[%emt 0:30:07]} 9. Bf4 {[%emt 0:21:04]} Be7 {[%emt 0:04:52]} 10. dxc5 {[%emt 0:22:29]} Qxd1 {[%emt 0:01:24]} 11. Bxd1 {[%emt 0:01:38]} Bxc5 {[%emt 0:00:43]} 12. Nh4 {[%emt 0:00:21]} Bxb1 {[%emt 0:05:31]} 13. Rxb1 {[%emt 0:01:16]} Nge5 {[%emt 0:00:52]} 14. Nf3 {[%emt 0:04:58]} Nd3 {[%emt 0:00:15]} 15. Bg3 {[%emt 0:00:25]} O-O-O {[%emt 0:00:06]} 16. Bc2 {[%emt 0:05:12]} Bd6 {[%emt 0:04:57]} 17. Ng5 {[%emt 0:09:10]} Bxg3 {[%emt 0:10:31]} 18. fxg3 {[%emt 0:01:05]} Nde5 {[%emt 0:00:06]} 19. Nxf7 {[%emt 0:00:19]} Nxf7 {[%emt 0:00:08]} 20. Rxf7 {[%emt 0:00:03]} Rd7 {[%emt 0:00:05]} 21. Rbf1 {[%emt 0:01:13]} Ne5 {[%emt 0:00:10]} 22. R7f2 {[%emt 0:02:33]} Nc4 {[%emt 0:00:53]} 23. Re2 {[%emt 0:04:07]} Kc7 {[%emt 0:02:07]} 24. Ba4 {[%emt 0:01:55]} Rd6 {[%emt 0:04:14]} 25. Rf7+ {[%emt 0:01:40]} Kb6 {[%emt 0:00:02]} 26. Rxg7 {[%emt 0:01:27]} Rf8 {[%emt 0:00:03]} 27. Rd7 {[%emt 0:04:01]} Rxd7 {[%emt 0:00:44]} 28. Bxd7 {[%emt 0:00:06]} e5 {[%emt 0:00:04]} 29. Be6 {[%emt 0:01:56]} Nd6 {[%emt 0:01:11]} 30. Rxe5 {[%emt 0:00:43]} Re8 {[%emt 0:00:03]} 31. Re2 {[%emt 0:00:00]} Kc5 {[%emt 0:00:56]} 32. Bg4 {[%emt 0:01:53]} Rg8 {[%emt 0:00:05]} 33. Bf3 {[%emt 0:00:10]} Rg7 {[%emt 0:00:09]} 34. g4 {[%emt 0:01:17]} b5 {[%emt 0:00:08]} 35. h4 {[%emt 0:00:21]} a5 {[%emt 0:00:05]} 36. Re6 {[%emt 0:01:09]} b4 {[%emt 0:00:11]} 37. h5 {[%emt 0:01:10]} Nc4 {[%emt 0:01:05]} 38. b3 {[%emt 0:00:53]} bxc3 {[%emt 0:00:05]} 39. Rc6+ {[%emt 0:00:38]} Kd4 {[%emt 0:00:02]} 40. Rxc4+ {[%emt 0:00:08]} Kd3 {[%emt 0:00:03]} 41. Be4+ {[%emt 0:01:05]} Kd2 {[%emt 0:00:01]} 42. Bf5 {[%emt 0:00:18]} h6 {[%emt 0:00:24]} 43. Rc6 {[%emt 0:00:36]} Re7 {[%emt 0:00:32]} 44. Rxh6 {[%emt 0:00:20]} Re1+ {[%emt 0:00:26]} 45. Kh2 {[%emt 0:00:08]} Ra1 {[%emt 0:00:03]} 46. Rd6+ {[%emt 0:00:10]} Kc1 {[%emt 0:00:04]} 47. h6 {[%emt 0:00:15]} 1-0